Workbook

Sheet 第1号様式 分担金申請書
A1: 第１号様式
D4: （記号番号）
E5: （日 付） | F5: 年 | G5: 月 | H5: 日
A9: 公益財団法人東京都体育協会 理事長 様
E13: （体育協会等名）
E14: （代表者役職氏名） | H14: 印
B18: 令和６年度 | C18: ジュニア育成地域推進事業地区体育協会等分担金申請書
A22: =" "&B18&"ジュニア育成地域推進事業地区体育協会等事業実施要項に基づき、下記のとおり分担金を申請いたします。" -> 令和６年度ジュニア育成地域推進事業地区体育協会等事業実施要項に基づき、下記のとおり分担金を申請いたします。
A26: 記
A29: １ 分担金申請額 金 | D29: ='第2号様式 申請事業総括表'!N29 -> 0 | G29: 円
A32: ２ 添付書類
A33: (1)第２号様式 申請事業総括表 別添のとおり
A34: (2)第３号様式 事業実施計画書 別添のとおり
A35: (3)第４号様式 収支予算書 別添のとおり
A36: (4)第５号様式 確認書 別添のとおり
A37: (5)第６号様式 公金取扱者設置届出書 別添のとおり
A38: (6) ガバナンスコードセルフチェックシート 別添のとおり
A40: ３ 分担金振込先
B41: 銀行支店名
B42: 口座種別 （〇をすること） | D42: 普通 ・ 当座
B43: （フリガナ） 口座名義
B44: 口座番号

Sheet 第2号様式 申請事業総括表
A1: 第２号様式 | I1: 地区体育協会等名 ： | L1: ='第1号様式 分担金申請書'!F13 -> 0
A3: ='第1号様式 分担金申請書'!B18&"ジュニア育成地域推進事業 申請事業総括表" -> 令和６年度ジュニア育成地域推進事業 申請事業総括表
P5: (単位：円）
A6: 番号 | B6: 事業名 | G6: 事業区分 | H6: 事業対象者参加予定人数 | N6: 予 算
H7: 未就学児 | I7: 小学生 | J7: 中学生 | K7: 高校生 | L7: 指導者等 | M7: 保護者 | N7: 分担金 | O7: 負担金・ その他 計 | P7: 計
A8: 1 | P8: =SUM(N8:O8) -> 0
A9: 2 | P9: =SUM(N9:O9) -> 0
A10: 3 | P10: 0
A11: 4 | P11: 0
A12: 5 | P12: 0
A13: 6 | P13: 0
A14: 7 | P14: 0
A15: 8 | P15: 0
A16: 9 | P16: 0
A17: 10 | P17: 0
A18: 11 | P18: 0
A19: 12 | P19: 0
A20: 13
A21: 14 | P21: 0
A22: 15 | P22: 0
A23: 16 | P23: 0
A24: 17 | P24: 0
A25: 18 | P25: 0
A26: 19 | P26: 0
A27: 20 | P27: 0
B28: 事務費 | P28: 0
A29: 計 | H29: =SUM(H8:H28) -> 0 | I29: 0 | J29: 0 | K29: 0 | L29: 0 | M29: 0 | N29: 0 | O29: 0 | P29: 0
A30: ※1事業区分 ： １教室、２大会、３強化練習、４指導者養成研修、５連絡協議会、６指導者連絡会、７種目間交流、８保護者等啓発
A31: ※事業数内訳 ： | D31: =IF(COUNTIF($G8:$G27,"1教室")>=1,"1教室："&COUNTIF($G8:$G27,"1教室"),"")&IF(COUNTIF($G8:$G27,"2大会")>=1,"、2大会："&COUNTIF($G8:$G27,"2大会"),"")&IF(COUNTIF($G8:$G27,"3強化練習")>=1,"、3強化練習："&COUNTIF($G8:$G27,"3強化練習"),"")&IF(COUNTIF($G8:$G27,"4指導者養成研修")>=1,"、4指導者養成研修："&COUNTIF($G8:$G27,"4指導者養成研修"),"")&IF(COUNTIF($G8:$G27,"5連絡協議会")>=1,"、5連絡協議会："&COUNTIF($G8:$G27,"5連絡協議会"),"")&IF(COUNTIF($G8:$G27,"6指導者連絡会")>=1,"、6指導者連絡会："&COUNTIF($G8:$G27,"6指導者連絡会"),"")&IF(COUNTIF($G8:$G27,"7種目間交流")>=1,"、7種目間交流："&COUNTIF($G8:$G27,"7種目間交流"),"")&IF(COUNTIF($G8:$G27,"8保護者等啓発")>=1,"、8保護者等啓発："&COUNTIF($G8:$G27,"8保護者等啓発"),"") -> 
G33: 1教室
G34: 2大会
G35: 3強化練習
G36: 4指導者養成研修
G37: 5連絡協議会
G38: 6指導者連絡会
G39: 7種目間交流
G40: 8保護者等啓発

Sheet 【参考】第2号様式確認シート
A1: ＜参考様式＞ | C1: ='第1号様式 分担金申請書'!B18&"ジュニア育成地域推進事業 収支予算確認用" -> 令和６年度ジュニア育成地域推進事業 収支予算確認用
A2: ※確認用のため提出不要
H3: 地区名 ：
G5: （単位：円） | L5: ＜確認欄＞ 収入-支出
A6: 事業名等 | C6: 収 入 | L6: 計 | M6: 分担金 | N6: 分担金以外
C7: a 分担金 | D7: b 負担金 | E7: c その他 | F7: 小計 B(b+c) | G7: C 合計 | L7: C-F | M7: A-D | N7: B-E
A8: 1 | F8: =SUM(D8:E8) -> 0 | G8: =SUM(C8:E8) -> 0 | L8: =G8-N34 -> 0 | M8: =C8-L34 -> 0 | N8: =F8-M34 -> 0
A9: 2 | F9: =SUM(D9:E9) -> 0 | G9: 0 | L9: 0 | M9: 0 | N9: 0
A10: 3 | F10: 0 | G10: 0 | L10: 0 | M10: 0 | N10: 0
A11: 4 | F11: 0 | G11: 0 | L11: 0 | M11: 0 | N11: 0
A12: 5 | F12: 0 | G12: 0 | L12: 0 | M12: 0 | N12: 0
A13: 6 | F13: 0 | G13: 0 | L13: 0 | M13: 0 | N13: 0
A14: 7 | F14: 0 | G14: 0 | L14: 0 | M14: 0 | N14: 0
A15: 8 | F15: 0 | G15: 0 | L15: 0 | M15: 0 | N15: 0
A16: 9 | F16: 0 | G16: 0 | L16: 0 | M16: 0 | N16: 0
A17: 10 | F17: 0 | G17: 0 | L17: 0 | M17: 0 | N17: 0
A18: 11 | F18: 0 | G18: 0 | L18: 0 | M18: 0 | N18: 0
A19: 12 | F19: 0 | G19: 0 | L19: 0 | M19: 0 | N19: 0
A20: 13 | F20: 0 | G20: 0 | L20: 0 | M20: 0 | N20: 0
A21: 14 | F21: 0 | G21: 0 | L21: 0 | M21: 0 | N21: 0
A22: 15 | F22: 0 | G22: 0 | L22: 0 | M22: 0 | N22: 0
A23: 16 | F23: 0 | G23: 0 | L23: 0 | M23: 0 | N23: 0
A24: 17 | F24: 0 | G24: 0 | L24: 0 | M24: 0 | N24: 0
A25: 18 | F25: 0 | G25: 0 | L25: 0 | M25: 0 | N25: 0
A26: 19 | F26: 0 | G26: 0 | L26: =G26-N52 -> 0 | M26: =C26-L52 -> 0 | N26: =F26-M52 -> 0
A27: 20 | F27: 0 | G27: 0 | L27: 0 | M27: 0 | N27: 0
B28: 事務費 | F28: 0 | G28: 0 | L28: 0 | M28: 0 | N28: 0
A29: 計 | C29: =SUM(C8:C28) -> 0 | D29: =SUM(D8:D28) -> 0 | E29: =SUM(E8:E28) -> 0 | F29: =SUM(F8:F28) -> 0 | G29: =SUM(G8:G28) -> 0 | L29: =SUM(L8:L28) -> 0 | M29: =SUM(M8:M28) -> 0 | N29: =SUM(N8:N28) -> 0
A30: ※ 網掛け欄には計算式が入っています。 | L30: =IF((COUNTIF($M$29,"<>0")),"分担金の収支が一致しておりません","")&IF((COUNTIF($N$29,"<>0"))," 分担金外の収支が一致しておりません","") -> 
N31: （単位：円）
A32: 事業名等 | C32: 支 出
C33: 謝金等 | D33: 交通費 | E33: 宿泊費 | F33: 印刷製本費 | G33: 消耗品費 | H33: 使用料・ 借上料 | I33: 通信運搬費 | J33: 保険料 | K33: 雑役務費 | L33: D 小計 | M33: E 分担金 対象外経費 | N33: F(D+E) 計
A34: 1 | B34: =B8 -> 0 | L34: =SUM(C34:K34) -> 0 | N34: =SUM(L34:M34) -> 0
A35: 2 | B35: 0 | L35: =SUM(C35:K35) -> 0 | N35: =SUM(L35:M35) -> 0
A36: 3 | B36: 0 | L36: 0 | N36: 0
A37: 4 | B37: 0 | L37: 0 | N37: 0
A38: 5 | B38: 0 | L38: 0 | N38: 0
A39: 6 | B39: 0 | L39: 0 | N39: 0
A40: 7 | B40: 0 | L40: 0 | N40: 0
A41: 8 | B41: 0 | L41: 0 | N41: 0
A42: 9 | B42: 0 | L42: 0 | N42: 0
A43: 10 | B43: 0 | L43: 0 | N43: 0
A44: 11 | B44: 0 | L44: 0 | N44: 0
A45: 12 | B45: 0 | L45: 0 | N45: 0
A46: 13 | B46: 0 | L46: 0 | N46: 0
A47: 14 | B47: 0 | L47: 0 | N47: 0
A48: 15 | B48: 0 | L48: 0 | N48: 0
A49: 16 | B49: 0 | L49: 0 | N49: 0
A50: 17 | B50: 0 | L50: 0 | N50: 0
A51: 18 | B51: 0 | L51: 0 | N51: 0
A52: 19 | B52: =B26 -> 0 | L52: 0 | N52: 0
A53: 20 | B53: 0 | L53: 0 | N53: 0
B54: 事務費 | L54: 0 | N54: 0
A55: 計 | C55: =SUM(C34:C54) -> 0 | D55: =SUM(D34:D54) -> 0 | E55: 0 | F55: 0 | G55: 0 | H55: 0 | I55: =SUM(I34:I54) -> 0 | J55: =SUM(J34:J54) -> 0 | K55: =SUM(K34:K54) -> 0 | L55: =SUM(L34:L54) -> 0 | M55: 0 | N55: 0

Sheet 第3号様式 実施計画書
A1: 第３号様式
G3: 事業番号
A5: 令和６年度ジュニア育成地域推進事業実施計画書
E7: 地区体育協会等名
E9: 主管団体名
B11: 事 項 | C11: 内 容
B12: １事業名称
B13: 競技名 （競技事業の時に記入）
C14: （１）競技事業
B15: 事業区分 | C15: 教室 大会 強化練習 指導者養成事業
B16: （1つのみ☑） | C16: （２）ネットワーク構築活用事業
C17: 連絡協議会 指導者連絡会 種目間交流 啓発
B18: 新規・継続 | C18: 新規企画事業 既存事業を再構築
B19: （1つのみ☑） | C19: 昨年度ジュニア育成地域推進事業として実施した事業
B20: ２実施期間（日時） ※時間も記入
B21: ３会場
B22: ４参加予定数 | C22: 教室・大会・強化練習 | E22: 未就学児 名、小学生 名
E23: 中学生 名、高校生 名
C24: 指導者養成研修・連絡協議会・指導者連絡会 | E24: 指導者・地区スポーツ関係者 名
C26: 種目間講習 | E26: 未就学児 名、小学生 名、中学生 名、
B27: ※事業区分に応じた参加者対象者数 | E27: 高校生 名、指導者・地区スポーツ関係者 名
B28: ※実人数で記入 | C28: 啓発 | E28: 未就学児 名、小学生 名、中学生 名、
E29: 高校生 名、指導者・地区スポーツ関係者 名、
E30: 保護者 名
B31: ５運営予定数 | C31: 指導者・講師 名（ 名）、審判員・役員 名（ 名）、
B32: ※（ ）には謝金支払者数を記入
C33: 著名指導者・特別講師 名（ 名）、医師・看護師 名（ 名）、
C34: 補助指導者・補助役員 名（ 名）、委員 名（ 名）
B35: ６募集方法
B36: ７ 具体的な事業 、内容、事業目的、期待される効果
B37: ８備考 | C37: その他主催者名（ ） → 経費負担 □有、□無

Sheet 第4号様式 収支予算書（事業別）
A1: 第４号様式
A2: 令和６年度ジュニア育成地域推進事業 収支予算書
J3: 事業番号
B4: 事 業 名
B6: 地区体育協会等名 | E6: 主管団体名
A7: ＜収入＞
A8: 科目 | B8: 金額 | D8: 内 容 | K8: 備 考
A9: １ 分担金 | C9: 円 | D9: 東京都分担金
A10: ２ 負担金 | C10: 円
A11: ３ その他 | C11: 円
A12: 合 計 | B12: =SUM(B9:B11) -> 0 | C12: 円
A13: ＜支出＞ | B13: =IF(B9-B44<>0,"分担金の収支が一致しておりません （"&ABS(B9-B44)&"円分）",IF(B12-B50<>0,"全体の収支が一致しておりません （"&ABS(B12-B50)&"円分）","")) -> 
A14: 科目 | B14: 金額 | D14: 内 容 | M14: 計
A15: １ 謝金等 | B15: =SUM(M15:M20) -> 0 | C15: 円 | E15: @ | G15: × | J15: × | L15: 回 | M15: =F15*H15*K15 -> 0 | N15: 円
E16: @ | G16: × | J16: × | L16: 回 | M16: 0 | N16: 円
E17: @ | G17: × | J17: × | L17: 回 | M17: 0 | N17: 円
E18: @ | G18: × | J18: × | L18: 回 | M18: 0 | N18: 円
E19: @ | G19: × | J19: × | L19: 回 | M19: 0 | N19: 円
E20: @ | G20: × | J20: × | L20: 回 | M20: 0 | N20: 円
A21: ２ 交通費 | B21: =SUM(M21:M24) -> 0 | C21: 円 | E21: @ | G21: × | J21: × | L21: 回 | M21: 0 | N21: 円
E22: @ | G22: × | J22: × | L22: 回 | M22: 0 | N22: 円
E23: @ | G23: × | J23: × | L23: 回 | M23: 0 | N23: 円
E24: @ | G24: × | J24: × | L24: 回 | M24: 0 | N24: 円
A25: ３ 宿泊費 | B25: =SUM(M25:M26) -> 0 | C25: 円 | E25: @ | G25: × | J25: × | L25: 回 | M25: =F25*H25*K25 -> 0 | N25: 円
E26: @ | G26: × | J26: × | L26: 回 | M26: =F26*H26*K26 -> 0 | N26: 円
A27: ４ 印刷製本費 | B27: =SUM(M27:M28) -> 0 | C27: 円 | E27: @ | G27: × | J27: × | L27: 回 | M27: 0 | N27: 円
E28: @ | G28: × | J28: × | L28: 回 | M28: 0 | N28: 円
A29: ５ 消耗品費 | B29: =SUM(M29:M34) -> 0 | C29: 円 | E29: @ | G29: × | J29: × | L29: 回 | M29: 0 | N29: 円
E30: @ | G30: × | J30: × | L30: 回 | M30: 0 | N30: 円
E31: @ | G31: × | J31: × | L31: 回 | M31: =F31*H31*K31 -> 0 | N31: 円
E32: @ | G32: × | J32: × | L32: 回 | M32: =F32*H32*K32 -> 0 | N32: 円
E33: @ | G33: × | J33: × | L33: 回 | M33: 0 | N33: 円
E34: @ | G34: × | J34: × | L34: 回 | M34: 0 | N34: 円
A35: ６ 使用料・借上料 | B35: =SUM(M35:M36) -> 0 | C35: 円 | E35: @ | G35: × | J35: × | L35: 回 | M35: 0 | N35: 円
E36: @ | G36: × | J36: × | L36: 回 | M36: 0 | N36: 円
A37: ７ 通信運搬費 | B37: =SUM(M37:M38) -> 0 | C37: 円 | E37: @ | G37: × | J37: × | L37: 回 | M37: 0 | N37: 円
E38: @ | G38: × | J38: × | L38: 回 | M38: 0 | N38: 円
A39: ８ 保険料 | B39: =SUM(M39:M40) -> 0 | C39: 円 | E39: @ | G39: × | J39: × | L39: 回 | M39: 0 | N39: 円
E40: @ | G40: × | J40: × | L40: 回 | M40: 0 | N40: 円
A41: ９ 雑役務費 | B41: =SUM(M41:M43) -> 0 | C41: 円 | E41: @ | G41: × | J41: × | L41: 回 | M41: 0 | N41: 円
E42: @ | G42: × | J42: × | L42: 回 | M42: 0 | N42: 円
E43: @ | G43: × | J43: × | L43: 回 | M43: 0 | N43: 円
A44: 分担金支出 計 | B44: =SUM(B15:B43) -> 0 | C44: 円
A45: 10 分担金以外で支出するもの | B45: =SUM(M45:M49) -> 0 | C45: 円 | E45: @ | G45: × | J45: × | L45: 回 | M45: =F45*H45*K45 -> 0 | N45: 円
E46: @ | G46: × | J46: × | L46: 回 | M46: =F46*H46*K46 -> 0 | N46: 円
E47: @ | G47: × | J47: × | L47: 回 | M47: =F47*H47*K47 -> 0 | N47: 円
E48: @ | G48: × | J48: × | L48: 回 | M48: =F48*H48*K48 -> 0 | N48: 円
E49: @ | G49: × | J49: × | L49: 回 | M49: =F49*H49*K49 -> 0 | N49: 円
A50: 合 計 | B50: =B45+B44 -> 0 | C50: 円

Sheet 第4号様式【記入例】
A1: 第4号様式
A2: 令和○○年度ジュニア育成地域推進事業 収支予算書 【記入例】
J3: 事業番号
B4: 事業名 | D4: 〇〇教室
B6: 地区体育協会等名 | D6: 〇〇体育協会 | E6: 主管団体名 | H6: 〇〇連盟
A7: ＜収入＞
A8: 科目 | B8: 金額 | D8: 内 容 | K8: 備 考
A9: 1 分 担 金 | B9: 150,000 | C9: 円 | D9: 東京都分担金
A10: 2 負 担 金 | B10: 50,000 | C10: 円 | D10: 〇〇体育協会負担
A11: 3 そ の 他 | C11: 円
A12: 合 計 | B12: =SUM(B9:B11) -> 200,000 | C12: 円
A13: ＜支出＞
A14: 科目 | B14: 金額 | D14: 内 容 | M14: 計
A15: １ 謝金等 | B15: =SUM(M15:M20) -> 100,000 | C15: 円 | D15: 指導者謝礼 ※科目10有 | E15: @ | F15: 3,000 | G15: × | H15: 5 | I15: 人 | J15: × | K15: 10 | L15: 回 | M15: 100,000 | N15: 円
E16: @ | G16: × | J16: × | L16: 回 | M16: =F16*H16*K16 -> 0 | N16: 円
E17: @ | G17: × | J17: × | L17: 回 | M17: =F17*H17*K17 -> 0 | N17: 円
E18: @ | G18: × | J18: × | L18: 回 | M18: 0 | N18: 円
E19: @ | G19: × | J19: × | L19: 回 | M19: 0 | N19: 円
E20: @ | G20: × | J20: × | L20: 回 | M20: 0 | N20: 円
A21: ２ 交通費 | B21: =SUM(M21:M24) -> 0 | C21: 円 | E21: @ | G21: × | J21: × | L21: 回 | M21: 0 | N21: 円
E22: @ | G22: × | J22: × | L22: 回 | M22: 0 | N22: 円
E23: @ | G23: × | J23: × | L23: 回 | M23: 0 | N23: 円
E24: @ | G24: × | J24: × | L24: 回 | M24: 0 | N24: 円
A25: ３ 宿泊費 | B25: =SUM(M25:M26) -> 0 | C25: 円 | E25: @ | G25: × | J25: × | L25: 回 | M25: =F25*H25*K25 -> 0 | N25: 円
E26: @ | G26: × | J26: × | L26: 回 | M26: =F26*H26*K26 -> 0 | N26: 円
A27: ４ 印刷製本費 | B27: =SUM(M27:M28) -> 0 | C27: 円 | E27: @ | G27: × | J27: × | L27: 回 | M27: 0 | N27: 円
E28: @ | G28: × | J28: × | L28: 回 | M28: 0 | N28: 円
A29: ５ 消耗品費 | B29: =SUM(M29:M34) -> 11,700 | C29: 円 | D29: 医薬品 | E29: @ | F29: 1,700 | G29: × | H29: 1 | J29: × | K29: 1 | L29: 回 | M29: 1,700 | N29: 円
D30: 熱中症予防飲料 | E30: @ | F30: 200 | G30: × | H30: 5 | I30: 本 | J30: × | K30: 10 | L30: 回 | M30: 10,000 | N30: 円
E31: @ | G31: × | J31: × | L31: 回 | M31: =F31*H31*K31 -> 0 | N31: 円
E32: @ | G32: × | J32: × | L32: 回 | M32: =F32*H32*K32 -> 0 | N32: 円
E33: @ | G33: × | J33: × | L33: 回 | M33: 0 | N33: 円
E34: @ | G34: × | J34: × | L34: 回 | M34: 0 | N34: 円
A35: ６使用料・借上料 | B35: =SUM(M35:M36) -> 10,000 | C35: 円 | D35: 会場使用料 | E35: @ | F35: 1,000 | G35: × | H35: 1 | J35: × | K35: 10 | L35: 回 | M35: 10,000 | N35: 円
E36: @ | G36: × | J36: × | L36: 回 | M36: 0 | N36: 円
A37: ７ 通信運搬費 | B37: =SUM(M37:M38) -> 800 | C37: 円 | D37: 指導者連絡用切手 | E37: @ | F37: 80 | G37: × | H37: 5 | J37: × | K37: 2 | L37: 回 | M37: 800 | N37: 円
E38: @ | G38: × | J38: × | L38: 回 | M38: 0 | N38: 円
A39: ８ 保険料 | B39: =SUM(M39:M40) -> 27,500 | C39: 円 | D39: 保険料 | E39: @ | F39: 500 | G39: × | H39: 55 | I39: 人 | J39: × | K39: 1 | L39: 回 | M39: =F39*H39*K39 -> 27,500 | N39: 円
E40: @ | G40: × | J40: × | L40: 回 | M40: =F40*H40*K40 -> 0 | N40: 円
A41: ９ 雑役務費 | B41: =SUM(M41:M43) -> 0 | C41: 円 | E41: @ | G41: × | J41: × | L41: 回 | M41: =F41*H41*K41 -> 0 | N41: 円
E42: @ | G42: × | J42: × | L42: 回 | M42: =F42*H42*K42 -> 0 | N42: 円
E43: @ | G43: × | J43: × | L43: 回 | M43: =F43*H43*K43 -> 0 | N43: 円
A44: 分担金支出計 | B44: =SUM(B15:B43) -> 150,000 | C44: 円
A45: 10 分担金以外で支出するもの | B45: =SUM(M45:M49) -> 50,000 | C45: 円 | D45: 指導者謝礼 ※科目1有 | E45: @ | F45: 3,000 | G45: × | H45: 5 | I45: 人 | J45: × | K45: 10 | L45: 回 | M45: 50,000 | N45: 円
E46: @ | G46: × | J46: × | L46: 回 | M46: =F46*H46*K46 -> 0 | N46: 円
E47: @ | G47: × | J47: × | L47: 回 | M47: =F47*H47*K47 -> 0 | N47: 円
E48: @ | G48: × | J48: × | L48: 回 | M48: =F48*H48*K48 -> 0 | N48: 円
E49: @ | G49: × | J49: × | L49: 回 | M49: =F49*H49*K49 -> 0 | N49: 円
A50: 合計 | B50: =B45+B44 -> 200,000 | C50: 円

Sheet 第7号様式 【特別】分担金申請書
A1: 第７号様式
D4: （記号番号）
E5: （日 付） | F5: 年 | G5: 月 | H5: 日
A9: 公益財団法人東京都体育協会 理事長 様
E13: （体育協会等名）
E14: （代表者役職氏名） | H14: 印
A18: ='第1号様式 分担金申請書'!B18&'第1号様式 分担金申請書'!C18 -> 令和６年度ジュニア育成地域推進事業地区体育協会等分担金申請書
A22: =" "&B18&"ジュニア育成地域推進事業地区体育協会等事業実施要項に基づき、下記のとおり分担金を申請いたします。" -> ジュニア育成地域推進事業地区体育協会等事業実施要項に基づき、下記のとおり分担金を申請いたします。
A26: 記
A29: １ 分担金申請額 金 | D29: ='第８様式 【特別】総括表'!F16 -> 0 | G29: 円
A32: ２ 添付書類
A33: (1)第８号様式 分担金特別申請事業総括表 別添のとおり
A34: (2)第９号様式 事業実施計画書 別添のとおり
A35: (3)第１０号様式 収支予算書 別添のとおり
A38: ３ 分担金振込先
B39: 銀行支店名
B40: 口座種別 （〇をすること） | D40: 普通 ・ 当座
B41: （フリガナ） 口座名義
B42: 口座番号

Sheet 第８様式 【特別】総括表
A3: 第８号様式
A5: 令和６年度ジュニア育成地域推進事業 分担金の特別申請事業 総括表
E8: 地区体育協会名
A10: 優先 順位 ※１ | B10: 事業番号※２ | C10: 申請区分 ※３ | D10: 事 業 名 | E10: 事業区分 ※４ | F10: 分担金の 特別申請額 | G10: 備 考
A11: 1
A12: 2
A13: 3
A14: 4
A15: 5
A16: 計 | F16: =SUM(F11:F15) -> 0
A18: ※１ 事業は１から希望優先順に記入してください。
A19: ※２ 既に申請済の事業はその事業番号を、新たに追加した事業は当初申請の続きの事業番号をご入力ください。
A20: ※３ 申請区分欄は次のいずれかから選んでください。
A21: ① 追加実施事業 分担金が不足し実施できない事業 （分担金が増額されれば実施可能となる事業）
A22: ② 事業規模拡大事業 分担金申請している事業で、事業規模を拡大する事業 （分担金申請中の事業で、分担金が増額されれば事業回数や事業対象者数を増やすことができる事業）
A23: ③ 負担金等を減額する事業 分担金申請している事業で、分担金対象となる経費を地区体協負担金等で支出する予定の事業 （分担金申請中の負担金や参加費の充当を予定している事業で、分担金が増額されれば負担金や参加費を 減額できる事業）
A24: ※４ 事業区分欄は、競技事業・ネットワーク構築活用事業から該当するものを選んでください。
A25: ① 競技事業 ： 教室、大会、強化練習、指導者養成研修
A26: ② ネットワーク構築活用事業 ： 連絡協議会、指導者連絡会、種目間交流、保護者等啓発
C29: ①追加実施 | E29: 1教室
C30: ②規模拡大 | E30: 2大会
C31: ③負担金等減額 | E31: 3強化練習
E32: 4指導者養成研修
E33: 5連絡協議会
E34: 6指導者連絡会
E35: 7種目間交流
E36: 8保護者等啓発

Sheet 第９号様式 実施計画書
A1: 第９号様式
H2: -（ ）
G3: 事業番号
A5: 令和６年度ジュニア育成地域推進事業実施計画書（特別申請用）
E7: 地区体育協会等名
E9: 主管団体名
B11: 事 項 | C11: 内 容
B12: １事業名称
B13: 競技名 （競技事業の時に記入）
C14: （１）競技事業
B15: 事業区分 | C15: 教室 大会 強化練習 指導者養成事業
B16: （1つのみ☑） | C16: （２）ネットワーク構築活用事業
C17: 連絡協議会 指導者連絡会 種目間交流 啓発
B18: 新規・継続 | C18: 新規企画事業 既存事業を再構築
B19: （1つのみ☑） | C19: 昨年度ジュニア育成地域推進事業として実施した事業
B20: ２実施期間（日時） ※時間も記入
B21: ３会場
B22: ４参加予定数 | C22: 教室・大会・強化練習 | E22: 未就学児 名、小学生 名
E23: 中学生 名、高校生 名
C24: 指導者養成研修・連絡協議会・指導者連絡会 | E24: 指導者・地区スポーツ関係者 名
C26: 種目間講習 | E26: 未就学児 名、小学生 名、中学生 名、
B27: ※事業区分に応じた参加者対象者数 | E27: 高校生 名、指導者・地区スポーツ関係者 名
B28: ※実人数で記入 | C28: 啓発 | E28: 未就学児 名、小学生 名、中学生 名、
E29: 高校生 名、指導者・地区スポーツ関係者 名、
E30: 保護者 名
B31: ５運営予定数 | C31: 指導者・講師 名（ 名）、審判員・役員 名（ 名）、
B32: ※（ ）には謝金支払者数を記入
C33: 著名指導者・特別講師 名（ 名）、医師・看護師 名（ 名）、
C34: 補助指導者・補助役員 名（ 名）、委員 名（ 名）
B35: ６募集方法
B36: ７ 具体的な事業 、内容、事業目的、期待される効果
B37: ８備考 | C37: その他主催者名（ ） → 経費負担 □有、□無

Sheet 第10号様式 【特別】収支予算書（事業別）
A1: 第10号様式
A2: 令和６年度ジュニア育成地域推進事業 収支予算書（特別申請用）
A3: （特） | J3: 優先順位
B4: 事業名
B6: 地区体育協会等名 | E6: 主管団体名
A7: ＜収入＞
A8: 科目 | B8: 金額 | D8: 内 容 | K8: 備 考
A9: １ 特別申請分担金 | C9: 円 | D9: 東京都分担金（特別申請で希望する額）
A10: ２ 分 担 金 | C10: 円 | D10: 東京都分担金（第4号様式で申請した額）
A11: ３ 負 担 金 | C11: 円
A12: ４ そ の 他 | C12: 円
A13: 合 計 | B13: =SUM(B9:B12) -> 0 | C13: 円
A14: ＜支出＞
A15: 科目 | B15: 金額 | C15: ☆ | D15: 内 容 | M15: 計
A16: １ 謝金等 | B16: =SUM(M16:M21) -> 0 | E16: @ | G16: × | J16: × | L16: 回 | M16: =F16*H16*K16 -> 0 | N16: 円
E17: @ | G17: × | J17: × | L17: 回 | M17: 0 | N17: 円
E18: @ | G18: × | J18: × | L18: 回 | M18: 0 | N18: 円
E19: @ | G19: × | J19: × | L19: 回 | M19: 0 | N19: 円
E20: @ | G20: × | J20: × | L20: 回 | M20: 0 | N20: 円
E21: @ | G21: × | J21: × | L21: 回 | M21: 0 | N21: 円
A22: ２ 交通費 | B22: =SUM(M22:M25) -> 0 | E22: @ | G22: × | J22: × | L22: 回 | M22: 0 | N22: 円
E23: @ | G23: × | J23: × | L23: 回 | M23: 0 | N23: 円
E24: @ | G24: × | J24: × | L24: 回 | M24: 0 | N24: 円
E25: @ | G25: × | J25: × | L25: 回 | M25: 0 | N25: 円
A26: ３ 宿泊費 | B26: =SUM(M26:M27) -> 0 | E26: @ | G26: × | J26: × | L26: 回 | M26: =F26*H26*K26 -> 0 | N26: 円
E27: @ | G27: × | J27: × | L27: 回 | M27: =F27*H27*K27 -> 0 | N27: 円
A28: ４ 印刷製本費 | B28: =SUM(M28:M29) -> 0 | E28: @ | G28: × | J28: × | L28: 回 | M28: 0 | N28: 円
E29: @ | G29: × | J29: × | L29: 回 | M29: 0 | N29: 円
A30: ５ 消耗品費 | B30: =SUM(M30:M35) -> 0 | E30: @ | G30: × | J30: × | L30: 回 | M30: 0 | N30: 円
E31: @ | G31: × | J31: × | L31: 回 | M31: 0 | N31: 円
E32: @ | G32: × | J32: × | L32: 回 | M32: =F32*H32*K32 -> 0 | N32: 円
E33: @ | G33: × | J33: × | L33: 回 | M33: =F33*H33*K33 -> 0 | N33: 円
E34: @ | G34: × | J34: × | L34: 回 | M34: 0 | N34: 円
E35: @ | G35: × | J35: × | L35: 回 | M35: 0 | N35: 円
A36: ６ 使用料・借上料 | B36: =SUM(M36:M37) -> 0 | E36: @ | G36: × | J36: × | L36: 回 | M36: 0 | N36: 円
E37: @ | G37: × | J37: × | L37: 回 | M37: 0 | N37: 円
A38: ７ 通信運搬費 | B38: =SUM(M38:M39) -> 0 | E38: @ | G38: × | J38: × | L38: 回 | M38: 0 | N38: 円
E39: @ | G39: × | J39: × | L39: 回 | M39: 0 | N39: 円
A40: ８ 保険料 | B40: =SUM(M40:M41) -> 0 | E40: @ | G40: × | J40: × | L40: 回 | M40: =F40*H40*K40 -> 0 | N40: 円
E41: @ | G41: × | J41: × | L41: 回 | M41: =F41*H41*K41 -> 0 | N41: 円
A42: ９ 雑役務費 | B42: =SUM(M42:M44) -> 0 | E42: @ | G42: × | J42: × | L42: 回 | M42: =F42*H42*K42 -> 0 | N42: 円
E43: @ | G43: × | J43: × | L43: 回 | M43: =F43*H43*K43 -> 0 | N43: 円
E44: @ | G44: × | J44: × | L44: 回 | M44: =F44*H44*K44 -> 0 | N44: 円
A45: 分担金支出計 | B45: =SUM(B16:B44) -> 0 | D45: ＜☆項特別申請額計＞ | E45: =SUMIF(C16:C44,"☆",M16:M44) -> 0
A46: 10 分担金以外で支出するもの | B46: =SUM(M46:M50) -> 0 | C46: 円 | E46: @ | G46: × | J46: × | L46: 回 | M46: =F46*H46*K46 -> 0 | N46: 円
E47: @ | G47: × | J47: × | L47: 回 | M47: =F47*H47*K47 -> 0 | N47: 円
E48: @ | G48: × | J48: × | L48: 回 | M48: =F48*H48*K48 -> 0 | N48: 円
E49: @ | G49: × | J49: × | L49: 回 | M49: =F49*H49*K49 -> 0 | N49: 円
E50: @ | G50: × | J50: × | L50: 回 | M50: =F50*H50*K50 -> 0 | N50: 円
A51: 合 計 | B51: =B46+B45 -> 0 | C51: 円
A53: ※「分担金申請済み事業」の場合は、既に作成済みの第4号様式の内容から、科目10「分担金以外で支出するもの」から科目１～９「分担金で支出するもの」に変更した項目の前に「☆」印を付けること。
A58: 確認 | B58: 収入「科目１」＝支出「☆項目計」 | E58: =B9 -> 0 | G58: － | H58: =E45 -> 0 | J58: ＝ | K58: =E58-H58 -> 0
B59: 収入「科目１」＋「科目２」＝支出「小計」 | E59: =B9+B10 -> 0 | G59: － | H59: =B45 -> 0 | J59: ＝ | K59: =E59-H59 -> 0
B60: 収入「合計」＝支出「合計｝ | E60: =B13 -> 0 | G60: － | H60: =B51 -> 0 | J60: ＝ | K60: =E60-H60 -> 0
C80: ☆

Sheet 第10号様式【記入例】
A1: 第10号様式 | B1: 令和○○年度ジュニア育成地域推進事業 収支予算書（特別申請用）【記入例）】
A3: （特） | J3: 優先順位
B4: 事業名 | D4: 〇〇教室
B6: 地区体育協会等名 | D6: 〇〇体育協会 | E6: 主管団体名 | H6: 〇〇連盟
A7: ＜収入＞
A8: 科目 | B8: 金額 | D8: 内 容 | K8: 備 考
A9: １ 特別申請分担金 | B9: 59,000 | C9: 円 | D9: 東京都分担金（特別申請で希望する額）
A10: ２ 分 担 金 | B10: 200,000 | C10: 円 | D10: 東京都分担金（第4号様式で申請した額）
A11: ３ 負 担 金 | C11: 円
A12: ４ そ の 他 | C12: 円
A13: 合 計 | B13: =SUM(B9:B12) -> 259,000 | C13: 円
A14: ＜支出＞
A15: 科目 | B15: 金額 | C15: ☆ | D15: 内 容 | M15: 計
A16: １ 謝金等 | B16: =SUM(M16:M21) -> 195,000 | D16: 指導者謝礼 | E16: @ | F16: 3,000 | G16: × | H16: 5 | J16: × | K16: 10 | L16: 回 | M16: =F16*H16*K16 -> 150,000 | N16: 円
C17: ☆ | D17: 指導者謝礼 | E17: @ | F17: 3,000 | G17: × | H17: 5 | J17: × | K17: 3 | L17: 回 | M17: 45,000 | N17: 円
E18: @ | G18: × | J18: × | L18: 回 | M18: 0 | N18: 円
E19: @ | G19: × | J19: × | L19: 回 | M19: 0 | N19: 円
E20: @ | G20: × | J20: × | L20: 回 | M20: 0 | N20: 円
E21: @ | G21: × | J21: × | L21: 回 | M21: 0 | N21: 円
A22: ２ 交通費 | B22: =SUM(M22:M25) -> 0 | E22: @ | G22: × | J22: × | L22: 回 | M22: 0 | N22: 円
E23: @ | G23: × | J23: × | L23: 回 | M23: 0 | N23: 円
E24: @ | G24: × | J24: × | L24: 回 | M24: 0 | N24: 円
E25: @ | G25: × | J25: × | L25: 回 | M25: 0 | N25: 円
A26: ３ 宿泊費 | B26: =SUM(M26:M27) -> 0 | E26: @ | G26: × | J26: × | L26: 回 | M26: =F26*H26*K26 -> 0 | N26: 円
E27: @ | G27: × | J27: × | L27: 回 | M27: =F27*H27*K27 -> 0 | N27: 円
A28: ４ 印刷製本費 | B28: =SUM(M28:M29) -> 0 | E28: @ | G28: × | J28: × | L28: 回 | M28: 0 | N28: 円
E29: @ | G29: × | J29: × | L29: 回 | M29: 0 | N29: 円
A30: ５ 消耗品費 | B30: =SUM(M30:M35) -> 11,700 | D30: 医薬品 | E30: @ | F30: 1,700 | G30: × | H30: 1 | J30: × | K30: 1 | L30: 回 | M30: 1,700 | N30: 円
D31: 熱中症予防飲料 | E31: @ | F31: 200 | G31: × | H31: 5 | I31: 本 | J31: × | K31: 10 | L31: 回 | M31: 10,000 | N31: 円
E32: @ | G32: × | J32: × | L32: 回 | M32: =F32*H32*K32 -> 0 | N32: 円
E33: @ | G33: × | J33: × | L33: 回 | M33: =F33*H33*K33 -> 0 | N33: 円
E34: @ | G34: × | J34: × | L34: 回 | M34: 0 | N34: 円
E35: @ | G35: × | J35: × | L35: 回 | M35: 0 | N35: 円
A36: ６使用料・借上料 | B36: =SUM(M36:M37) -> 13,000 | D36: 会場使用料 | E36: @ | F36: 1,000 | G36: × | H36: 1 | J36: × | K36: 10 | L36: 回 | M36: 10,000 | N36: 円
C37: ☆ | D37: 会場使用料 | E37: @ | F37: 1,000 | G37: × | H37: 1 | J37: × | K37: 3 | L37: 回 | M37: 3,000 | N37: 円
A38: ７ 通信運搬費 | B38: =SUM(M38:M39) -> 800 | D38: 指導者連絡用切手 | E38: @ | F38: 80 | G38: × | H38: 5 | J38: × | K38: 2 | L38: 回 | M38: 800 | N38: 円
E39: @ | G39: × | J39: × | L39: 回 | M39: 0 | N39: 円
A40: ８ 保険料 | B40: =SUM(M40:M41) -> 38,500 | D40: 保険料 | E40: @ | F40: 500 | G40: × | H40: 55 | I40: 人 | J40: × | K40: 1 | L40: 回 | M40: =F40*H40*K40 -> 27,500 | N40: 円
C41: ☆ | D41: 保険料 | E41: @ | F41: 200 | G41: × | H41: 55 | J41: × | K41: 1 | L41: 回 | M41: =F41*H41*K41 -> 11,000 | N41: 円
A42: ９ 雑役務費 | B42: =SUM(M42:M44) -> 0 | E42: @ | G42: × | J42: × | L42: 回 | M42: =F42*H42*K42 -> 0 | N42: 円
E43: @ | G43: × | J43: × | L43: 回 | M43: =F43*H43*K43 -> 0 | N43: 円
E44: @ | G44: × | J44: × | L44: 回 | M44: =F44*H44*K44 -> 0 | N44: 円
A45: 分担金支出計 | B45: =SUM(B16:B44) -> 259,000 | D45: ＜☆項特別申請額計＞ | E45: =SUMIF(C16:C44,"☆",M16:M44) -> 59,000
A46: 10 分担金以外で支出するもの | B46: =SUM(M46:M50) -> 0 | C46: 円 | E46: @ | G46: × | J46: × | L46: 回 | M46: =F46*H46*K46 -> 0 | N46: 円
E47: @ | G47: × | J47: × | L47: 回 | M47: =F47*H47*K47 -> 0 | N47: 円
E48: @ | G48: × | J48: × | L48: 回 | M48: =F48*H48*K48 -> 0 | N48: 円
E49: @ | G49: × | J49: × | L49: 回 | M49: =F49*H49*K49 -> 0 | N49: 円
E50: @ | G50: × | J50: × | L50: 回 | M50: =F50*H50*K50 -> 0 | N50: 円
A51: 合計 | B51: =B46+B45 -> 259,000 | C51: 円
A53: ※「分担金申請済み事業」の場合は、既に作成済みの第4号様式の内容から、科目10「分担金以外で支出するもの」から科目１～９「分担金で支出するもの」に変更した項目の前に「☆」印を付けること。
A58: 確認 | B58: 収入「科目１」＝支出「☆項目計」 | E58: =B9 -> 59,000 | G58: － | H58: =E45 -> 59,000 | J58: ＝ | K58: =E58-H58 -> 0
B59: 収入「科目１」＋「科目２」＝支出「小計」 | E59: =B9+B10 -> 259,000 | G59: － | H59: =B45 -> 259,000 | J59: ＝ | K59: =E59-H59 -> 0
B60: 収入「合計」＝支出「合計｝ | E60: =B13 -> 259,000 | G60: － | H60: =B51 -> 259,000 | J60: ＝ | K60: =E60-H60 -> 0
C80: ☆

Sheet 第17号様式 実施計画書 (オンライン)
A1: 第17号様式 | H1: オンライン
G3: 事業番号
A5: 令和６年度ジュニア育成地域推進事業実施計画書
E7: 地区体育協会等名
E9: 主管団体名
B11: 事 項 | C11: 内 容
B12: １事業名称
B13: 競技名 （競技事業の時に記入）
C14: （１）競技事業
B15: 事業区分 | C15: 教室 大会 強化練習 指導者養成事業
B16: （1つのみ☑） | C16: （２）ネットワーク構築活用事業
C17: 連絡協議会 指導者連絡会 種目間交流 啓発
B18: 新規・継続 | C18: 新規企画事業 既存事業を再構築
B19: （1つのみ☑） | C19: 昨年度ジュニア育成地域推進事業として実施した事業
B20: ２実施期間（日時） ※時間も記入
B21: ３会場
B22: ４参加予定数 | C22: 教室・大会・強化練習 | E22: 未就学児 名、小学生 名
E23: 中学生 名、高校生 名
C24: 指導者養成研修・連絡協議会・指導者連絡会 | E24: 指導者・地区スポーツ関係者 名
C26: 種目間講習 | E26: 未就学児 名、小学生 名、中学生 名、
B27: ※事業区分に応じた参加者対象者数 | E27: 高校生 名、指導者・地区スポーツ関係者 名
B28: ※実人数で記入 | C28: 啓発 | E28: 未就学児 名、小学生 名、中学生 名、
E29: 高校生 名、指導者・地区スポーツ関係者 名、
E30: 保護者 名
B31: ５運営予定数 | C31: 指導者・講師 名（ 名）、審判員・役員 名（ 名）、
B32: ※（ ）には謝金支払者数を記入
C33: 著名指導者・特別講師 名（ 名）、医師・看護師 名（ 名）、
C34: 補助指導者・補助役員 名（ 名）、委員 名（ 名）
B35: ６募集方法
B36: ７ 具体的な事業 、内容、事業目的、期待される効果
B37: ８備考 | C37: その他主催者名（ ） → 経費負担 □有、□無

Sheet 第18号様式 収支予算書（オンライン）
L1: オンライン
A2: 第18号様式
A3: 令和６年度ジュニア育成地域推進事業 収支予算書
J4: 事業番号
B5: 事 業 名
B7: 地区体育協会等名 | E7: 主管団体名
A8: ＜収入＞
A9: 科目 | B9: 金額 | D9: 内 容 | K9: 備 考
A10: １ 分担金 | B10: =B45 -> 0 | C10: 円 | D10: 東京都分担金
A11: ２ 負担金 | C11: 円
A12: ３ その他 | C12: 円
A13: 合 計 | B13: =SUM(B10:B12) -> 0 | C13: 円
A14: ＜支出＞ | B14: =IF(B10-B45<>0,"分担金の収支が一致しておりません （"&ABS(B10-B45)&"円分）",IF(B13-B51<>0,"全体の収支が一致しておりません （"&ABS(B13-B51)&"円分）","")) -> 
A15: 科目 | B15: 金額 | D15: 内 容 | M15: 計
A16: １ 謝金等 | B16: =SUM(M16:M21) -> 0 | C16: 円 | E16: @ | G16: × | J16: × | L16: 回 | M16: =F16*H16*K16 -> 0 | N16: 円
E17: @ | G17: × | J17: × | L17: 回 | M17: 0 | N17: 円
E18: @ | G18: × | J18: × | L18: 回 | M18: 0 | N18: 円
E19: @ | G19: × | J19: × | L19: 回 | M19: 0 | N19: 円
E20: @ | G20: × | J20: × | L20: 回 | M20: 0 | N20: 円
E21: @ | G21: × | J21: × | L21: 回 | M21: 0 | N21: 円
A22: ２ 交通費 | B22: =SUM(M22:M25) -> 0 | C22: 円 | E22: @ | G22: × | J22: × | L22: 回 | M22: 0 | N22: 円
E23: @ | G23: × | J23: × | L23: 回 | M23: 0 | N23: 円
E24: @ | G24: × | J24: × | L24: 回 | M24: 0 | N24: 円
E25: @ | G25: × | J25: × | L25: 回 | M25: 0 | N25: 円
A26: ３ 宿泊費 | B26: =SUM(M26:M27) -> 0 | C26: 円 | E26: @ | G26: × | J26: × | L26: 回 | M26: =F26*H26*K26 -> 0 | N26: 円
E27: @ | G27: × | J27: × | L27: 回 | M27: =F27*H27*K27 -> 0 | N27: 円
A28: ４ 印刷製本費 | B28: =SUM(M28:M29) -> 0 | C28: 円 | E28: @ | G28: × | J28: × | L28: 回 | M28: 0 | N28: 円
E29: @ | G29: × | J29: × | L29: 回 | M29: 0 | N29: 円
A30: ５ 消耗品費 | B30: =SUM(M30:M35) -> 0 | C30: 円 | E30: @ | G30: × | J30: × | L30: 回 | M30: 0 | N30: 円
E31: @ | G31: × | J31: × | L31: 回 | M31: 0 | N31: 円
E32: @ | G32: × | J32: × | L32: 回 | M32: =F32*H32*K32 -> 0 | N32: 円
E33: @ | G33: × | J33: × | L33: 回 | M33: =F33*H33*K33 -> 0 | N33: 円
E34: @ | G34: × | J34: × | L34: 回 | M34: 0 | N34: 円
E35: @ | G35: × | J35: × | L35: 回 | M35: 0 | N35: 円
A36: ６ 使用料・借上料 | B36: =SUM(M36:M37) -> 0 | C36: 円 | E36: @ | G36: × | J36: × | L36: 回 | M36: 0 | N36: 円
E37: @ | G37: × | J37: × | L37: 回 | M37: 0 | N37: 円
A38: ７ 通信運搬費 | B38: =SUM(M38:M39) -> 0 | C38: 円 | E38: @ | G38: × | J38: × | L38: 回 | M38: 0 | N38: 円
E39: @ | G39: × | J39: × | L39: 回 | M39: 0 | N39: 円
A40: ８ 保険料 | B40: =SUM(M40:M41) -> 0 | C40: 円 | E40: @ | G40: × | J40: × | L40: 回 | M40: 0 | N40: 円
E41: @ | G41: × | J41: × | L41: 回 | M41: 0 | N41: 円
A42: ９ 雑役務費 | B42: =SUM(M42:M44) -> 0 | C42: 円 | E42: @ | G42: × | J42: × | L42: 回 | M42: 0 | N42: 円
E43: @ | G43: × | J43: × | L43: 回 | M43: 0 | N43: 円
E44: @ | G44: × | J44: × | L44: 回 | M44: 0 | N44: 円
A45: 分担金支出 計 | B45: =SUM(B16:B44) -> 0 | C45: 円
A46: 10 分担金以外で支出するもの | B46: =SUM(M46:M50) -> 0 | C46: 円 | E46: @ | G46: × | J46: × | L46: 回 | M46: =F46*H46*K46 -> 0 | N46: 円
E47: @ | G47: × | J47: × | L47: 回 | M47: =F47*H47*K47 -> 0 | N47: 円
E48: @ | G48: × | J48: × | L48: 回 | M48: =F48*H48*K48 -> 0 | N48: 円
E49: @ | G49: × | J49: × | L49: 回 | M49: =F49*H49*K49 -> 0 | N49: 円
E50: @ | G50: × | J50: × | L50: 回 | M50: =F50*H50*K50 -> 0 | N50: 円
A51: 合 計 | B51: =B46+B45 -> 0 | C51: 円
A53: ＜確認＞
A54: ①分担金収入－分担金支出 | D54: =B10-B45 -> 0
A55: ②収入合計－支出合計 | D55: =B13-B51 -> 0 | F55: ← 「０」より大きい値の時は残額があるので、 収入を減らすか支出を増やすことになる。 「０」より小さい値の時は、収入を増やすか 支出を減らす必要あり。
C63: ☆
